Workbook

Sheet 附表八
A1: 附表8：
A2: 2023年末江门市政府债务余额预测数
J3: 单位：亿元
A4: 项 目 | B4: 全市 | C4: 市本级 | D4: 蓬江区 | E4: 江海区 | F4: 新会区 | G4: 台山市 | H4: 开平市 | I4: 鹤山市 | J4: 恩平市
A5: 一、2022年末债务余额 | B5: =B6+B7 -> 898.89 | C5: =C6+C7 -> 147.72 | D5: =D6+D7 -> 114.78 | E5: 57.13 | F5: 208.19 | G5: 129.54 | H5: 109.62 | I5: 91.56 | J5: 40.36
A6: （1）一般债务余额 | B6: 317.33 | C6: 72.67 | D6: 23.68 | E6: 5.33 | F6: 106.28 | G6: 24.52 | H6: 51.74 | I6: 20.98 | J6: 12.14
A7: （2）专项债务余额 | B7: 581.55 | C7: 75.04 | D7: 91.10 | E7: 51.80 | F7: 101.91 | G7: 105.01 | H7: 57.89 | I7: 70.58 | J7: 28.22
A8: 二、2023年再融资债券 | B8: =B9+B10 -> 105.66 | C8: =C9+C10 -> 32.23 | D8: =D9+D10 -> 12.74 | E8: 3.36 | F8: 34.38 | G8: 6.09 | H8: 8.23 | I8: 5.53 | J8: 3.09
A9: （1）一般债务 | B9: 58.18 | C9: 18.86 | D9: 4.68 | E9: 0.88 | F9: 29.01 | G9: 0.08 | H9: 1.34 | I9: 3.23 | J9: 0.10
A10: （2）专项债务 | B10: 47.48 | C10: 13.37 | D10: 8.06 | E10: 2.48 | F10: 5.37 | G10: 6.01 | H10: 6.89 | I10: 2.30 | J10: 3.00
A11: 三、2023年新增债券 | B11: =B12+B13 -> 189.40 | C11: =C12+C13 -> 5.70 | D11: =D12+D13 -> 28.00 | E11: 28.00 | F11: 37.50 | G11: 30.85 | H11: 20.05 | I11: 24.50 | J11: 14.80
A12: （1）一般债务 | B12: 1.40 | C12: 0.00 | D12: 0.00 | E12: 0.00 | F12: 0.00 | G12: 0.35 | H12: 0.25 | I12: 0.00 | J12: 0.80
A13: （2）专项债务 | B13: 188.00 | C13: 5.70 | D13: 28.00 | E13: 28.00 | F13: 37.50 | G13: 30.50 | H13: 19.80 | I13: 24.50 | J13: 14.00
A14: 四、政府债券还本 | B14: =B15+B16 -> 107.16 | C14: =C15+C16 -> 32.23 | D14: =D15+D16 -> 12.74 | E14: 3.36 | F14: 34.38 | G14: 7.58 | H14: 8.23 | I14: 5.53 | J14: 3.09
A15: （1）偿还一般债务 | B15: 58.38 | C15: 18.86 | D15: 4.68 | E15: 0.88 | F15: 29.01 | G15: 0.28 | H15: 1.34 | I15: 3.23 | J15: 0.10
A16: （2）偿还专项债务 | B16: 48.78 | C16: 13.37 | D16: 8.06 | E16: 2.48 | F16: 5.37 | G16: 7.30 | H16: 6.89 | I16: 2.30 | J16: 3.00
A17: 五、截止2023年末债务余额预测值 （一+二＋三-四） | B17: =SUM(B18:B19) -> 1,086.79 | C17: =SUM(C18:C19) -> 153.42 | D17: =SUM(D18:D19) -> 142.77 | E17: 85.13 | F17: 245.69 | G17: 158.89 | H17: 129.67 | I17: 116.06 | J17: 55.16
A18: （1）一般债务余额 | B18: =B6+B9+B12-B15 -> 318.53 | C18: =C6+C9+C12-C15 -> 72.67 | D18: 23.67 | E18: 5.33 | F18: 106.28 | G18: 24.67 | H18: 51.99 | I18: 20.98 | J18: 12.94
A19: （2）专项债务余额 | B19: =B7+B10+B13-B16 -> 768.26 | C19: =C7+C10+C13-C16 -> 80.74 | D19: 119.10 | E19: 79.80 | F19: 139.41 | G19: 134.22 | H19: 77.69 | I19: 95.08 | J19: 42.22
A20: 备注：本预测数据未考虑非政府债券形式政府债务还款情况（我市政府债券形式的政府债务占比达99%以上）。
